[Event "Titled Tuesday Blitz August 22 Early 2023"]
[White "Martinez Reyes, Pedro Ramon"]
[Black "Blokhin, Sofia"]
[WhiteFideId "3901807"]
[BlackFideId "4508190"]
[WhiteElo "2549"]
[BlackElo "2307"]
[Result "1-0"]
[Round "3"]
[TimeControl "180+1"]
[Date "2023.08.22"]
[WhiteClock "0:00:26"]
[BlackClock "0:00:01"]
[Board "162"]

1. d4 {[%clk 0:03:00]}  f5 {[%clk 0:02:59]} 2. c4 {[%clk 0:02:58]}  Nf6 {[%clk 0:02:57]} 3. e3 {[%clk 0:02:55]}  g6 {[%clk 0:02:57]} 4. Nf3 {[%clk 0:02:54]}  Bg7 {[%clk 0:02:57]} 5. b4 {[%clk 0:02:54]}  O-O {[%clk 0:02:56]} 6. Bb2 {[%clk 0:02:54]}  d6 {[%clk 0:02:55]} 7. Be2 {[%clk 0:02:53]}  b6 {[%clk 0:02:50]} 8. d5 {[%clk 0:02:44]}  c6 {[%clk 0:02:44]} 9. dxc6 {[%clk 0:02:41]}  Nxc6 {[%clk 0:02:42]} 10. a3 {[%clk 0:02:42]}  Bb7 {[%clk 0:02:38]} 11. O-O {[%clk 0:02:41]}  e5 {[%clk 0:02:35]} 12. Nc3 {[%clk 0:02:36]}  a5 {[%clk 0:02:30]} 13. Nb5 {[%clk 0:02:33]}  Ne8 {[%clk 0:02:20]} 14. Bc3 {[%clk 0:02:26]}  e4 {[%clk 0:02:15]} 15. Nfd4 {[%clk 0:02:25]}  Ne5 {[%clk 0:02:09]} 16. Qb3 {[%clk 0:02:17]}  Qe7 {[%clk 0:01:57]} 17. c5+ {[%clk 0:01:40]}  Kh8 {[%clk 0:01:49]} 18. cxb6 {[%clk 0:01:40]}  f4 {[%clk 0:01:43]} 19. Qe6 {[%clk 0:01:32]}  Qg5 {[%clk 0:01:31]} 20. exf4 {[%clk 0:01:28]}  Qxf4 {[%clk 0:01:18]} 21. Qh3 {[%clk 0:01:11]}  Nf6 {[%clk 0:00:54]} 22. Qg3 {[%clk 0:00:46]}  Qxg3 {[%clk 0:00:49]} 23. hxg3 {[%clk 0:00:45]}  Nd5 {[%clk 0:00:45]} 24. Bb2 {[%clk 0:00:41]}  e3 {[%clk 0:00:43]} 25. f4 {[%clk 0:00:41]}  Nc6 {[%clk 0:00:37]} 26. Rfd1 {[%clk 0:00:20]}  axb4 {[%clk 0:00:36]} 27. a4 {[%clk 0:00:19]}  Nxd4 {[%clk 0:00:31]} 28. Bxd4 {[%clk 0:00:18]}  Bxd4 {[%clk 0:00:29]} 29. Rxd4 {[%clk 0:00:19]}  Nc3 {[%clk 0:00:27]} 30. Nxc3 {[%clk 0:00:19]}  bxc3 {[%clk 0:00:28]} 31. Rc4 {[%clk 0:00:19]}  Rfc8 {[%clk 0:00:26]} 32. Rxc8+ {[%clk 0:00:19]}  Rxc8 {[%clk 0:00:26]} 33. a5 {[%clk 0:00:18]}  Ra8 {[%clk 0:00:24]} 34. a6 {[%clk 0:00:18]}  c2 {[%clk 0:00:23]} 35. a7 {[%clk 0:00:17]}  d5 {[%clk 0:00:22]} 36. Rc1 {[%clk 0:00:17]}  d4 {[%clk 0:00:21]} 37. Bd3 {[%clk 0:00:17]}  Bd5 {[%clk 0:00:17]} 38. Kf1 {[%clk 0:00:18]}  Rc8 {[%clk 0:00:15]} 39. Rxc2 {[%clk 0:00:18]}  Rxc2 {[%clk 0:00:12]} 40. Bxc2 {[%clk 0:00:19]}  Kg7 {[%clk 0:00:10]} 41. Bd1 {[%clk 0:00:19]}  Kf8 {[%clk 0:00:09]} 42. Bf3 {[%clk 0:00:20]}  Bc4+ {[%clk 0:00:07]} 43. Ke1 {[%clk 0:00:20]}  d3 {[%clk 0:00:05]} 44. a8=Q+ {[%clk 0:00:21]}  Kg7 {[%clk 0:00:05]} 45. Qb7+ {[%clk 0:00:20]}  Kh6 {[%clk 0:00:05]} 46. Qd7 {[%clk 0:00:20]}  d2+ {[%clk 0:00:05]} 47. Qxd2 {[%clk 0:00:20]}  exd2+ {[%clk 0:00:05]} 48. Kxd2 {[%clk 0:00:21]}  Ba6 {[%clk 0:00:04]} 49. g4 {[%clk 0:00:22]}  Kg7 {[%clk 0:00:04]} 50. g5 {[%clk 0:00:22]}  Kf7 {[%clk 0:00:04]} 51. b7 {[%clk 0:00:23]}  Bxb7 {[%clk 0:00:04]} 52. Bxb7 {[%clk 0:00:24]}  Ke6 {[%clk 0:00:05]} 53. Be4 {[%clk 0:00:24]}  Kd6 {[%clk 0:00:03]} 54. Ke3 {[%clk 0:00:24]}  Kc5 {[%clk 0:00:04]} 55. Kd3 {[%clk 0:00:25]}  Kd6 {[%clk 0:00:03]} 56. Kd4 {[%clk 0:00:26]}  Ke6 {[%clk 0:00:03]} 57. g3 {[%clk 0:00:26]}  Kd6 {[%clk 0:00:03]} 58. g4 {[%clk 0:00:26]}  Ke6 {[%clk 0:00:04]} 59. f5+ {[%clk 0:00:27]}  gxf5 {[%clk 0:00:04]} 60. gxf5+ {[%clk 0:00:28]}  Kf7 {[%clk 0:00:04]} 61. Ke5 {[%clk 0:00:26]}  Kg7 {[%clk 0:00:04]} 62. f6+ {[%clk 0:00:26]}  Kf7 {[%clk 0:00:04]} 63. Bxh7 {[%clk 0:00:26]}  Kf8 {[%clk 0:00:04]} 64. g6 {[%clk 0:00:26]}  Ke8 {[%clk 0:00:04]} 65. g7 {[%clk 0:00:26]}  Kd7 {[%clk 0:00:01]} 66. g8=Q {[%clk 0:00:26]} 1-0


[Site "https://www.chess.com"]

[Event "Titled Tuesday Blitz August 22 Early 2023"]
[White "Lacasa Diaz, Jose Antonio"]
[Black "Shishkov, Andrei"]
[WhiteFideId "2203375"]
[BlackFideId "4500563"]
[WhiteElo "2280"]
[BlackElo "2542"]
[Result "1-0"]
[Round "3"]
[TimeControl "180+1"]
[Date "2023.08.22"]
[WhiteClock "0:00:13"]
[BlackClock "0:00:00"]
[Board "166"]

1. e4 {[%clk 0:03:00]}  c6 {[%clk 0:02:59]} 2. d4 {[%clk 0:03:00]}  d5 {[%clk 0:02:59]} 3. exd5 {[%clk 0:03:00]}  cxd5 {[%clk 0:02:59]} 4. c4 {[%clk 0:03:01]}  Nf6 {[%clk 0:02:59]} 5. Nc3 {[%clk 0:03:02]}  Nc6 {[%clk 0:02:59]} 6. Nf3 {[%clk 0:03:02]}  Bg4 {[%clk 0:02:59]} 7. cxd5 {[%clk 0:03:02]}  Nxd5 {[%clk 0:02:58]} 8. Qb3 {[%clk 0:03:03]}  Bxf3 {[%clk 0:02:58]} 9. gxf3 {[%clk 0:03:03]}  e6 {[%clk 0:02:58]} 10. Qxb7 {[%clk 0:03:02]}  Nxd4 {[%clk 0:02:58]} 11. Bb5+ {[%clk 0:03:02]}  Nxb5 {[%clk 0:02:59]} 12. Qc6+ {[%clk 0:03:03]}  Ke7 {[%clk 0:02:59]} 13. Qxb5 {[%clk 0:03:03]}  Qd7 {[%clk 0:03:00]} 14. Nxd5+ {[%clk 0:03:02]}  Qxd5 {[%clk 0:03:00]} 15. Bg5+ {[%clk 0:03:02]}  f6 {[%clk 0:02:54]} 16. Qxd5 {[%clk 0:03:02]}  exd5 {[%clk 0:02:55]} 17. Be3 {[%clk 0:03:03]}  Ke6 {[%clk 0:02:52]} 18. O-O-O {[%clk 0:03:03]}  Bb4 {[%clk 0:02:51]} 19. Kb1 {[%clk 0:03:01]}  Rhd8 {[%clk 0:02:45]} 20. Rd3 {[%clk 0:03:00]}  Ba5 {[%clk 0:02:25]} 21. Rhd1 {[%clk 0:02:39]}  Bb6 {[%clk 0:02:09]} 22. Rb3 {[%clk 0:02:28]}  Rd6 {[%clk 0:02:07]} 23. Bxb6 {[%clk 0:02:20]}  axb6 {[%clk 0:01:59]} 24. Re3+ {[%clk 0:02:20]}  Kf7 {[%clk 0:01:58]} 25. Rde1 {[%clk 0:02:16]}  Ra7 {[%clk 0:01:57]} 26. Re8 {[%clk 0:02:12]}  h5 {[%clk 0:01:34]} 27. Rh8 {[%clk 0:02:08]}  Kg6 {[%clk 0:01:16]} 28. Rg1+ {[%clk 0:02:06]}  Kf5 {[%clk 0:01:16]} 29. Rxh5+ {[%clk 0:02:04]}  Kf4 {[%clk 0:01:17]} 30. Rh3 {[%clk 0:01:42]}  Re7 {[%clk 0:01:01]} 31. Rg4+ {[%clk 0:01:35]}  Kf5 {[%clk 0:01:01]} 32. Rhg3 {[%clk 0:01:20]}  Re1+ {[%clk 0:00:47]} 33. Kc2 {[%clk 0:01:19]}  Re2+ {[%clk 0:00:48]} 34. Kb3 {[%clk 0:01:18]}  Rxf2 {[%clk 0:00:46]} 35. Rxg7 {[%clk 0:01:16]}  Rxh2 {[%clk 0:00:46]} 36. Rg2 {[%clk 0:00:53]}  Rxg2 {[%clk 0:00:39]} 37. Rxg2 {[%clk 0:00:53]}  Kf4 {[%clk 0:00:40]} 38. Kc3 {[%clk 0:00:50]}  Ke3 {[%clk 0:00:26]} 39. Kc2 {[%clk 0:00:44]}  d4 {[%clk 0:00:24]} 40. a4 {[%clk 0:00:26]}  Kxf3 {[%clk 0:00:18]} 41. Rd2 {[%clk 0:00:21]}  Ke3 {[%clk 0:00:18]} 42. Rd3+ {[%clk 0:00:20]}  Ke4 {[%clk 0:00:18]} 43. b4 {[%clk 0:00:20]}  f5 {[%clk 0:00:16]} 44. a5 {[%clk 0:00:18]}  bxa5 {[%clk 0:00:15]} 45. bxa5 {[%clk 0:00:18]}  Rc6+ {[%clk 0:00:12]} 46. Kd2 {[%clk 0:00:18]}  Rh6 {[%clk 0:00:10]} 47. Ra3 {[%clk 0:00:15]}  Rh2+ {[%clk 0:00:08]} 48. Ke1 {[%clk 0:00:15]}  d3 {[%clk 0:00:08]} 49. a6 {[%clk 0:00:16]}  Ke3 {[%clk 0:00:08]} 50. Kf1 {[%clk 0:00:15]}  Rh8 {[%clk 0:00:06]} 51. a7 {[%clk 0:00:14]}  Ra8 {[%clk 0:00:06]} 52. Ke1 {[%clk 0:00:14]}  f4 {[%clk 0:00:07]} 53. Ra6 {[%clk 0:00:14]}  f3 {[%clk 0:00:03]} 54. Re6+ {[%clk 0:00:13]}  Kd4 {[%clk 0:00:03]} 55. Ra6 {[%clk 0:00:13]}  Kc3 {[%clk 0:00:00]} 56. Rc6+ {[%clk 0:00:13]} 1-0


[Site "https://www.chess.com"]

[Event "Titled Tuesday Blitz August 22 Early 2023"]
[White "Gontcharov, Vladislav"]
[Black "Tiarks, Jann-Christian"]
[WhiteFideId "4123492"]
[BlackFideId "12951595"]
[WhiteElo "2542"]
[BlackElo "2292"]
[Result "1/2-1/2"]
[Round "3"]
[TimeControl "180+1"]
[Date "2023.08.22"]
[WhiteClock "0:00:24"]
[BlackClock "0:00:23"]
[Board "167"]

1. d4 {[%clk 0:03:00]}  Nf6 {[%clk 0:02:54]} 2. c4 {[%clk 0:03:00]}  e6 {[%clk 0:02:54]} 3. Nf3 {[%clk 0:02:59]}  d5 {[%clk 0:02:54]} 4. Nc3 {[%clk 0:02:59]}  Be7 {[%clk 0:02:52]} 5. Bg5 {[%clk 0:02:58]}  O-O {[%clk 0:02:51]} 6. e3 {[%clk 0:02:58]}  b6 {[%clk 0:02:51]} 7. cxd5 {[%clk 0:02:52]}  exd5 {[%clk 0:02:51]} 8. Be2 {[%clk 0:02:51]}  Bb7 {[%clk 0:02:50]} 9. O-O {[%clk 0:02:50]}  Nbd7 {[%clk 0:02:50]} 10. a3 {[%clk 0:02:46]}  h6 {[%clk 0:02:50]} 11. Bh4 {[%clk 0:02:46]}  c5 {[%clk 0:02:48]} 12. dxc5 {[%clk 0:02:38]}  Nxc5 {[%clk 0:02:47]} 13. Nd4 {[%clk 0:02:35]}  Nfe4 {[%clk 0:02:44]} 14. Bxe7 {[%clk 0:02:33]}  Qxe7 {[%clk 0:02:39]} 15. Rc1 {[%clk 0:02:32]}  Nxc3 {[%clk 0:02:35]} 16. Rxc3 {[%clk 0:02:31]}  Ne4 {[%clk 0:02:35]} 17. Rc1 {[%clk 0:02:25]}  Rac8 {[%clk 0:02:35]} 18. Qa4 {[%clk 0:02:19]}  a5 {[%clk 0:02:21]} 19. Qb5 {[%clk 0:02:11]}  Qf6 {[%clk 0:02:20]} 20. Rcd1 {[%clk 0:01:49]}  Rc5 {[%clk 0:02:14]} 21. Qd7 {[%clk 0:01:47]}  Bc8 {[%clk 0:02:08]} 22. Qa7 {[%clk 0:01:41]}  Qg6 {[%clk 0:01:50]} 23. Bf3 {[%clk 0:01:34]}  Ng5 {[%clk 0:01:48]} 24. Kh1 {[%clk 0:01:19]}  Nxf3 {[%clk 0:01:38]} 25. Nxf3 {[%clk 0:01:19]}  Bg4 {[%clk 0:01:37]} 26. Ne5 {[%clk 0:01:19]}  Qh5 {[%clk 0:01:28]} 27. Nxg4 {[%clk 0:01:11]}  Qxg4 {[%clk 0:01:29]} 28. Qxb6 {[%clk 0:01:11]}  Rc2 {[%clk 0:01:29]} 29. Rxd5 {[%clk 0:00:53]}  Rfc8 {[%clk 0:01:18]} 30. Rd8+ {[%clk 0:00:50]}  Rxd8 {[%clk 0:01:16]} 31. Qxd8+ {[%clk 0:00:49]}  Kh7 {[%clk 0:01:17]} 32. Qd3+ {[%clk 0:00:49]}  Qg6 {[%clk 0:01:16]} 33. Qxg6+ {[%clk 0:00:48]}  Kxg6 {[%clk 0:01:17]} 34. b4 {[%clk 0:00:46]}  axb4 {[%clk 0:01:16]} 35. axb4 {[%clk 0:00:46]}  Rb2 {[%clk 0:01:17]} 36. h4 {[%clk 0:00:45]}  Rxb4 {[%clk 0:01:17]} 37. g3 {[%clk 0:00:45]}  h5 {[%clk 0:01:16]} 38. Kg2 {[%clk 0:00:45]}  Kf6 {[%clk 0:01:17]} 39. Rc1 {[%clk 0:00:45]}  g6 {[%clk 0:01:17]} 40. Rc5 {[%clk 0:00:44]}  Rb2 {[%clk 0:01:15]} 41. Kf3 {[%clk 0:00:44]}  Ra2 {[%clk 0:01:15]} 42. Rc4 {[%clk 0:00:44]}  Rb2 {[%clk 0:01:15]} 43. g4 {[%clk 0:00:45]}  hxg4+ {[%clk 0:01:15]} 44. Rxg4 {[%clk 0:00:46]}  Rb1 {[%clk 0:01:14]} 45. Rf4+ {[%clk 0:00:46]}  Ke6 {[%clk 0:01:12]} 46. Rg4 {[%clk 0:00:39]}  Rh1 {[%clk 0:01:10]} 47. Kf4 {[%clk 0:00:39]}  Kf6 {[%clk 0:01:06]} 48. Kg3 {[%clk 0:00:36]}  Rg1+ {[%clk 0:01:05]} 49. Kh3 {[%clk 0:00:36]}  Rh1+ {[%clk 0:01:05]} 50. Kg2 {[%clk 0:00:36]}  Ra1 {[%clk 0:01:06]} 51. Rg5 {[%clk 0:00:36]}  Ra4 {[%clk 0:01:05]} 52. Kg3 {[%clk 0:00:35]}  Ra1 {[%clk 0:01:04]} 53. Rb5 {[%clk 0:00:34]}  Rg1+ {[%clk 0:01:02]} 54. Kh2 {[%clk 0:00:34]}  Rf1 {[%clk 0:01:01]} 55. Kg2 {[%clk 0:00:34]}  Rc1 {[%clk 0:01:01]} 56. h5 {[%clk 0:00:34]}  gxh5 {[%clk 0:01:00]} 57. Rxh5 {[%clk 0:00:35]}  Rc2 {[%clk 0:00:58]} 58. Rb5 {[%clk 0:00:35]}  Ra2 {[%clk 0:00:58]} 59. Kg3 {[%clk 0:00:35]}  Ra1 {[%clk 0:00:54]} 60. f3 {[%clk 0:00:35]}  Re1 {[%clk 0:00:52]} 61. Kf4 {[%clk 0:00:35]}  Ra1 {[%clk 0:00:49]} 62. e4 {[%clk 0:00:35]}  Ra3 {[%clk 0:00:48]} 63. Rb6+ {[%clk 0:00:35]}  Ke7 {[%clk 0:00:48]} 64. Kg4 {[%clk 0:00:35]}  Ra5 {[%clk 0:00:40]} 65. f4 {[%clk 0:00:35]}  Rc5 {[%clk 0:00:39]} 66. e5 {[%clk 0:00:34]}  Ra5 {[%clk 0:00:35]} 67. Kf5 {[%clk 0:00:31]}  Rc5 {[%clk 0:00:33]} 68. Rb7+ {[%clk 0:00:31]}  Ke8 {[%clk 0:00:33]} 69. Kg5 {[%clk 0:00:32]}  Ra5 {[%clk 0:00:32]} 70. f5 {[%clk 0:00:31]}  Rxe5 {[%clk 0:00:30]} 71. Kf6 {[%clk 0:00:31]}  Ra5 {[%clk 0:00:28]} 72. Re7+ {[%clk 0:00:30]}  Kf8 {[%clk 0:00:23]} 73. Rxf7+ {[%clk 0:00:30]}  Kg8 {[%clk 0:00:23]} 74. Rg7+ {[%clk 0:00:31]}  Kf8 {[%clk 0:00:23]} 75. Rb7 {[%clk 0:00:27]}  Ra6+ {[%clk 0:00:22]} 76. Kg5 {[%clk 0:00:23]}  Rc6 {[%clk 0:00:22]} 77. Rb5 {[%clk 0:00:23]}  Ra6 {[%clk 0:00:22]} 78. Re5 {[%clk 0:00:24]}  Kf7 {[%clk 0:00:21]} 79. Rb5 {[%clk 0:00:21]}  Rc6 {[%clk 0:00:21]} 80. Rb7+ {[%clk 0:00:21]}  Kf8 {[%clk 0:00:21]} 81. f6 {[%clk 0:00:21]}  Rc1 {[%clk 0:00:21]} 82. Kg6 {[%clk 0:00:22]}  Rg1+ {[%clk 0:00:21]} 83. Kf5 {[%clk 0:00:23]}  Rf1+ {[%clk 0:00:21]} 84. Kg6 {[%clk 0:00:23]}  Rg1+ {[%clk 0:00:22]} 85. Kf5 {[%clk 0:00:24]}  Rf1+ {[%clk 0:00:22]} 86. Kg6 {[%clk 0:00:24]}  Rg1+ {[%clk 0:00:23]} 1/2-1/2


[Site "https://www.chess.com"]

[Event "Titled Tuesday Blitz August 22 Early 2023"]
[White "Shvedova, Alexandra"]
[Black "Zampronha, Wladimir Camilo"]
[WhiteFideId "54154782"]
[BlackFideId "2103087"]
[WhiteElo "2538"]
[BlackElo "2278"]
[Result "1/2-1/2"]
[Round "3"]
[TimeControl "180+1"]
[Date "2023.08.22"]
[WhiteClock "0:00:31"]
[BlackClock "0:00:13"]
[Board "168"]

1. d4 {[%clk 0:03:00]}  Nf6 {[%clk 0:02:59]} 2. Nf3 {[%clk 0:03:01]}  e6 {[%clk 0:02:57]} 3. c4 {[%clk 0:03:02]}  d5 {[%clk 0:02:49]} 4. Nc3 {[%clk 0:03:02]}  Bb4 {[%clk 0:02:46]} 5. Bg5 {[%clk 0:03:02]}  h6 {[%clk 0:02:42]} 6. Bxf6 {[%clk 0:03:02]}  Qxf6 {[%clk 0:02:42]} 7. cxd5 {[%clk 0:03:03]}  exd5 {[%clk 0:02:42]} 8. e3 {[%clk 0:03:04]}  c5 {[%clk 0:02:37]} 9. Be2 {[%clk 0:03:00]}  Nc6 {[%clk 0:02:36]} 10. O-O {[%clk 0:02:58]}  Be6 {[%clk 0:02:32]} 11. Rc1 {[%clk 0:02:55]}  c4 {[%clk 0:02:20]} 12. Qa4 {[%clk 0:02:16]}  Kd8 {[%clk 0:02:17]} 13. Ne5 {[%clk 0:02:11]}  Bxc3 {[%clk 0:02:15]} 14. Nxc6+ {[%clk 0:02:08]}  bxc6 {[%clk 0:02:15]} 15. Rxc3 {[%clk 0:02:06]}  Bd7 {[%clk 0:02:11]} 16. b3 {[%clk 0:02:06]}  cxb3 {[%clk 0:02:11]} 17. Rxb3 {[%clk 0:02:01]}  Qd6 {[%clk 0:02:11]} 18. Rc1 {[%clk 0:01:57]}  Ke7 {[%clk 0:02:11]} 19. Rb7 {[%clk 0:01:52]}  Rhb8 {[%clk 0:02:10]} 20. Qa6 {[%clk 0:01:40]}  Rxb7 {[%clk 0:02:08]} 21. Qxb7 {[%clk 0:01:41]}  Qb8 {[%clk 0:02:08]} 22. Qa6 {[%clk 0:01:39]}  Qb2 {[%clk 0:02:05]} 23. Rf1 {[%clk 0:01:32]}  Qb6 {[%clk 0:02:01]} 24. Qa3+ {[%clk 0:01:32]}  Ke8 {[%clk 0:01:59]} 25. Qd6 {[%clk 0:01:29]}  Qb8 {[%clk 0:01:55]} 26. Qa3 {[%clk 0:01:25]}  a5 {[%clk 0:01:51]} 27. Bd3 {[%clk 0:01:24]}  Qb4 {[%clk 0:01:51]} 28. Qc1 {[%clk 0:01:22]}  Rb8 {[%clk 0:01:50]} 29. Qd1 {[%clk 0:01:20]}  Qc3 {[%clk 0:01:42]} 30. e4 {[%clk 0:01:13]}  Kf8 {[%clk 0:01:38]} 31. exd5 {[%clk 0:01:11]}  cxd5 {[%clk 0:01:38]} 32. Qf3 {[%clk 0:01:10]}  Be6 {[%clk 0:01:34]} 33. h3 {[%clk 0:01:06]}  Rb2 {[%clk 0:01:33]} 34. a4 {[%clk 0:00:59]}  Qxd4 {[%clk 0:01:30]} 35. Bb5 {[%clk 0:00:59]}  Qc5 {[%clk 0:01:04]} 36. Qg3 {[%clk 0:00:59]}  g6 {[%clk 0:01:01]} 37. Qb8+ {[%clk 0:00:56]}  Qc8 {[%clk 0:00:39]} 38. Qe5 {[%clk 0:00:56]}  Qc2 {[%clk 0:00:25]} 39. Qh8+ {[%clk 0:00:54]}  Ke7 {[%clk 0:00:25]} 40. Qxh6 {[%clk 0:00:55]}  Qd2 {[%clk 0:00:21]} 41. Qh4+ {[%clk 0:00:53]}  Kf8 {[%clk 0:00:19]} 42. Qd8+ {[%clk 0:00:52]}  Kg7 {[%clk 0:00:19]} 43. Qd6 {[%clk 0:00:50]}  Rc2 {[%clk 0:00:19]} 44. h4 {[%clk 0:00:48]}  Rc1 {[%clk 0:00:18]} 45. h5 {[%clk 0:00:45]}  Rxf1+ {[%clk 0:00:17]} 46. Bxf1 {[%clk 0:00:46]}  gxh5 {[%clk 0:00:17]} 47. Qe5+ {[%clk 0:00:45]}  Kf8 {[%clk 0:00:17]} 48. Qxh5 {[%clk 0:00:44]}  Qb4 {[%clk 0:00:17]} 49. Qh8+ {[%clk 0:00:43]}  Ke7 {[%clk 0:00:17]} 50. Qa1 {[%clk 0:00:39]}  d4 {[%clk 0:00:16]} 51. Qd1 {[%clk 0:00:38]}  Bb3 {[%clk 0:00:14]} 52. Qe2+ {[%clk 0:00:38]}  Kf8 {[%clk 0:00:15]} 53. Qg4 {[%clk 0:00:32]}  Bxa4 {[%clk 0:00:13]} 54. Qc8+ {[%clk 0:00:32]}  Kg7 {[%clk 0:00:13]} 55. Qg4+ {[%clk 0:00:31]}  Kf8 {[%clk 0:00:13]} 56. Qc8+ {[%clk 0:00:31]}  Kg7 {[%clk 0:00:13]} 57. Qg4+ {[%clk 0:00:31]}  Kf8 {[%clk 0:00:13]} 1/2-1/2


[Site "https://www.chess.com"]

[Event "Titled Tuesday Blitz August 22 Early 2023"]
[White "Clawitter, Craig"]
[Black "Lehtosaari, Mauri"]
[WhiteFideId "2023105"]
[BlackFideId "501999"]
[WhiteElo "2222"]
[BlackElo "2526"]
[Result "0-1"]
[Round "3"]
[TimeControl "180+1"]
[Date "2023.08.22"]
[WhiteClock "0:00:04"]
[BlackClock "0:00:45"]
[Board "174"]

1. e4 {[%clk 0:03:00]}  d5 {[%clk 0:02:59]} 2. exd5 {[%clk 0:03:00]}  Qxd5 {[%clk 0:03:00]} 3. Nc3 {[%clk 0:03:01]}  Qd8 {[%clk 0:02:59]} 4. d4 {[%clk 0:03:01]}  Nf6 {[%clk 0:02:58]} 5. Nf3 {[%clk 0:03:01]}  Bg4 {[%clk 0:02:59]} 6. h3 {[%clk 0:03:00]}  Bxf3 {[%clk 0:02:59]} 7. Qxf3 {[%clk 0:03:00]}  c6 {[%clk 0:02:59]} 8. g4 {[%clk 0:02:57]}  e6 {[%clk 0:02:58]} 9. g5 {[%clk 0:02:54]}  Nd5 {[%clk 0:02:57]} 10. Ne4 {[%clk 0:02:55]}  b5 {[%clk 0:02:45]} 11. Bd2 {[%clk 0:02:44]}  Nd7 {[%clk 0:02:38]} 12. h4 {[%clk 0:02:34]}  N7b6 {[%clk 0:02:32]} 13. h5 {[%clk 0:02:27]}  Qd7 {[%clk 0:02:30]} 14. g6 {[%clk 0:02:18]}  hxg6 {[%clk 0:02:27]} 15. hxg6 {[%clk 0:02:18]}  Rxh1 {[%clk 0:02:28]} 16. gxf7+ {[%clk 0:02:18]}  Qxf7 {[%clk 0:02:28]} 17. Qxh1 {[%clk 0:02:11]}  O-O-O {[%clk 0:02:26]} 18. O-O-O {[%clk 0:02:04]}  Nc4 {[%clk 0:01:56]} 19. Bxc4 {[%clk 0:01:49]}  bxc4 {[%clk 0:01:56]} 20. Qf1 {[%clk 0:01:40]}  Nb6 {[%clk 0:01:37]} 21. Ba5 {[%clk 0:00:50]}  Qf4+ {[%clk 0:01:34]} 22. Nd2 {[%clk 0:00:43]}  Rxd4 {[%clk 0:01:31]} 23. Bc3 {[%clk 0:00:35]}  Rd7 {[%clk 0:01:18]} 24. Qe2 {[%clk 0:00:26]}  Nd5 {[%clk 0:00:51]} 25. Qxe6 {[%clk 0:00:24]}  Nxc3 {[%clk 0:00:51]} 26. Qxc6+ {[%clk 0:00:24]}  Kd8 {[%clk 0:00:45]} 27. bxc3 {[%clk 0:00:17]}  Ba3+ {[%clk 0:00:45]} 28. Kb1 {[%clk 0:00:04]}  Qb8+ {[%clk 0:00:45]} 0-1


[Site "https://www.chess.com"]

[Event "Titled Tuesday Blitz August 22 Early 2023"]
[White "Flis, Pawel"]
[Black "ATM622"]
[WhiteFideId "1112864"]
[WhiteElo "2143"]
[BlackElo "2518"]
[Result "0-1"]
[Round "3"]
[TimeControl "180+1"]
[Date "2023.08.22"]
[WhiteClock "0:00:00"]
[BlackClock "0:00:03"]
[Board "180"]

1. e4 {[%clk 0:03:00]}  c6 {[%clk 0:03:00]} 2. d4 {[%clk 0:02:59]}  d5 {[%clk 0:03:00]} 3. exd5 {[%clk 0:02:59]}  cxd5 {[%clk 0:03:01]} 4. c4 {[%clk 0:03:00]}  e6 {[%clk 0:03:00]} 5. Nf3 {[%clk 0:02:57]}  Nf6 {[%clk 0:03:01]} 6. Nc3 {[%clk 0:02:57]}  Nc6 {[%clk 0:03:01]} 7. Bd3 {[%clk 0:02:54]}  dxc4 {[%clk 0:03:01]} 8. Bxc4 {[%clk 0:02:54]}  Be7 {[%clk 0:03:00]} 9. O-O {[%clk 0:02:54]}  O-O {[%clk 0:03:00]} 10. Bg5 {[%clk 0:02:50]}  a6 {[%clk 0:02:59]} 11. a4 {[%clk 0:02:49]}  b6 {[%clk 0:02:57]} 12. Re1 {[%clk 0:02:46]}  Bb7 {[%clk 0:02:57]} 13. Rc1 {[%clk 0:02:45]}  Rc8 {[%clk 0:02:56]} 14. Qe2 {[%clk 0:02:42]}  Nb4 {[%clk 0:02:53]} 15. Red1 {[%clk 0:02:34]}  Bxf3 {[%clk 0:02:49]} 16. gxf3 {[%clk 0:02:32]}  Nh5 {[%clk 0:02:42]} 17. Be3 {[%clk 0:02:17]}  Bg5 {[%clk 0:02:23]} 18. Ne4 {[%clk 0:02:16]}  Nf4 {[%clk 0:02:10]} 19. Qd2 {[%clk 0:02:04]}  Rxc4 {[%clk 0:01:28]} 20. Rxc4 {[%clk 0:01:46]}  Nbd5 {[%clk 0:01:27]} 21. Kh1 {[%clk 0:01:38]}  Bh6 {[%clk 0:01:16]} 22. Rg1 {[%clk 0:01:30]}  Qh4 {[%clk 0:01:09]} 23. Rg4 {[%clk 0:01:25]}  Qh3 {[%clk 0:01:08]} 24. Qd1 {[%clk 0:00:55]}  Nxe3 {[%clk 0:00:39]} 25. fxe3 {[%clk 0:00:51]}  Nd5 {[%clk 0:00:39]} 26. Rg3 {[%clk 0:00:44]}  Qh4 {[%clk 0:00:27]} 27. Rg4 {[%clk 0:00:41]}  Qe7 {[%clk 0:00:25]} 28. Qg1 {[%clk 0:00:28]}  Nxe3 {[%clk 0:00:21]} 29. Rxg7+ {[%clk 0:00:20]}  Bxg7 {[%clk 0:00:22]} 30. Qxe3 {[%clk 0:00:20]}  f5 {[%clk 0:00:14]} 31. Qg5 {[%clk 0:00:18]}  Qb7 {[%clk 0:00:09]} 32. Ng3 {[%clk 0:00:13]}  Qxf3+ {[%clk 0:00:07]} 33. Kg1 {[%clk 0:00:13]}  Qd1+ {[%clk 0:00:07]} 34. Kg2 {[%clk 0:00:12]}  Kh8 {[%clk 0:00:05]} 35. Rc7 {[%clk 0:00:11]}  Qxd4 {[%clk 0:00:03]} 36. Nh5 {[%clk 0:00:00]}  Rg8 {[%clk 0:00:03]} 0-1


[Site "https://www.chess.com"]

[Event "Titled Tuesday Blitz August 22 Early 2023"]
[White "Chen, Minda"]
[Black "Dinosaurio_1975"]
[WhiteFideId "30937000"]
[WhiteElo "2070"]
[BlackElo "2513"]
[Result "0-1"]
[Round "3"]
[TimeControl "180+1"]
[Date "2023.08.22"]
[WhiteClock "0:00:09"]
[BlackClock "0:01:22"]
[Board "184"]

1. d4 {[%clk 0:02:59]}  d5 {[%clk 0:02:59]} 2. c4 {[%clk 0:02:58]}  e6 {[%clk 0:02:59]} 3. Nc3 {[%clk 0:02:58]}  Nf6 {[%clk 0:02:59]} 4. Nf3 {[%clk 0:02:58]}  a6 {[%clk 0:02:59]} 5. cxd5 {[%clk 0:02:57]}  exd5 {[%clk 0:03:00]} 6. Bg5 {[%clk 0:02:55]}  Be6 {[%clk 0:03:00]} 7. e3 {[%clk 0:02:55]}  Nbd7 {[%clk 0:03:01]} 8. Bd3 {[%clk 0:02:54]}  Bd6 {[%clk 0:02:59]} 9. O-O {[%clk 0:02:54]}  c6 {[%clk 0:03:00]} 10. a3 {[%clk 0:02:52]}  Qc7 {[%clk 0:02:57]} 11. b4 {[%clk 0:02:50]}  O-O {[%clk 0:02:57]} 12. Qb3 {[%clk 0:02:49]}  Bg4 {[%clk 0:02:52]} 13. Nd2 {[%clk 0:02:43]}  Bxh2+ {[%clk 0:02:51]} 14. Kh1 {[%clk 0:02:43]}  Bd6 {[%clk 0:02:51]} 15. Rac1 {[%clk 0:02:39]}  h6 {[%clk 0:02:50]} 16. Bxf6 {[%clk 0:02:35]}  Nxf6 {[%clk 0:02:51]} 17. b5 {[%clk 0:02:15]}  Qd7 {[%clk 0:02:45]} 18. a4 {[%clk 0:01:57]}  Bh3 {[%clk 0:02:43]} 19. Ne2 {[%clk 0:01:31]}  Qg4 {[%clk 0:02:36]} 20. Ng3 {[%clk 0:01:05]}  Bxg3 {[%clk 0:02:15]} 21. fxg3 {[%clk 0:01:05]}  Qxg3 {[%clk 0:02:15]} 22. gxh3 {[%clk 0:01:05]}  Qxh3+ {[%clk 0:02:15]} 23. Kg1 {[%clk 0:01:05]}  Qxe3+ {[%clk 0:02:14]} 24. Rf2 {[%clk 0:01:03]}  Ng4 {[%clk 0:02:13]} 25. Rf1 {[%clk 0:00:51]}  axb5 {[%clk 0:02:01]} 26. axb5 {[%clk 0:00:27]}  Qxd4 {[%clk 0:01:48]} 27. Kg2 {[%clk 0:00:15]}  Nxf2 {[%clk 0:01:43]} 28. Rxf2 {[%clk 0:00:16]}  Qg4+ {[%clk 0:01:43]} 29. Kh1 {[%clk 0:00:13]}  Ra1+ {[%clk 0:01:42]} 30. Nf1 {[%clk 0:00:13]}  cxb5 {[%clk 0:01:34]} 31. Qxb5 {[%clk 0:00:12]}  Qh3+ {[%clk 0:01:32]} 32. Kg1 {[%clk 0:00:12]}  Rd1 {[%clk 0:01:27]} 33. Bc2 {[%clk 0:00:11]}  Rd4 {[%clk 0:01:26]} 34. Rg2 {[%clk 0:00:11]}  Rh4 {[%clk 0:01:22]} 35. Qxd5 {[%clk 0:00:11]}  Qh1+ {[%clk 0:01:22]} 36. Kf2 {[%clk 0:00:11]}  Rf4+ {[%clk 0:01:22]} 37. Kg3 {[%clk 0:00:09]}  Qh4# {[%clk 0:01:22]} 0-1


[Site "https://www.chess.com"]